fUSD/lending_fUSD_20251221
["ID","MTS","AMOUNT","RATE_DAILY","PERIOD"]
[399429517,1766345261570,991.57232712,5.297e-05,2]
[399429518,1766345261594,4632.15767288,5.297e-05,2]
[399429519,1766345261775,222.92726885,5.561e-05,2]
[399429520,1766345261798,4855.08494173,5.561e-05,2]
[399429521,1766345261821,545.71778942,5.561e-05,2]
[399429522,1766345261982,4309.36715231,5.826e-05,2]
[399429523,1766345262006,1314.36284769,5.826e-05,2]
[399429524,1766345262185,3540.72209404,6.091e-05,2]
[399429525,1766345262220,9.5302423,6.091e-05,2]
[399429526,1766345262246,152.99,6.091e-05,2]
[399429528,1766345267198,-192.16279521,6.091e-05,2]
[399429529,1766345269346,-174.67189407,6.091e-05,2]
[399429530,1766345271579,-1553.65297438,6.091e-05,2]
[399429531,1766345271611,-1268.97405124,6.356e-05,2]
[399429532,1766345271652,-4354.75594876,6.356e-05,2]
[399429534,1766345273625,-186.97814288,6.621e-05,2]
[399429535,1766345277164,-261.55427861,6.621e-05,2]
[399429536,1766345278206,-628.35445357,6.621e-05,2]
[399429537,1766345280382,-169.43004117,6.621e-05,2]
[399429538,1766345282952,-287.21469149,6.621e-05,2]
[399429544,1766345284399,-307.72212499,6.621e-05,2]
[399429545,1766345285912,-3782.47626729,6.621e-05,2]
[399429546,1766345286429,-195.0,6.885e-05,2]
[399429547,1766345288498,-105.0,6.885e-05,2]
[399429548,1766345288522,-70.33755494,6.885e-05,2]
[399429549,1766345290022,-375.37816304,6.885e-05,2]
[399429550,1766345294211,-213.50011937,6.885e-05,2]
[399429551,1766345298891,-237.16760672,6.885e-05,2]
[399429554,1766345300788,-167.48545431,6.885e-05,2]
[399429555,1766345305284,753.2,0.00035616,30]
[399429556,1766345305465,-136.13110162,6.885e-05,2]
[399429557,1766345305489,-137.3088758,6.886e-05,2]
[399429558,1766345308236,-239.51454569,6.886e-05,2]
[399429559,1766345310966,-213.28853002,6.886e-05,2]
[399429560,1766345316807,-388.67025023,6.886e-05,2]
[399429561,1766345318983,-243.29042024,6.886e-05,2]
[399429566,1766345322210,-269.51327146,6.886e-05,2]
[399429569,1766345324741,-388.3299744,6.886e-05,2]
[399429570,1766345327178,-236.85962594,6.886e-05,2]
[399429572,1766345331656,-299.94059175,6.886e-05,2]
[399429573,1766345333745,-413.04066533,6.886e-05,2]
[399429574,1766345340163,-193.0,6.886e-05,2]
[399429575,1766345342028,1000.0,0.00035615,30]
[399429576,1766345342070,1000.0,0.00035615,30]
[399429577,1766345342118,1000.0,0.00032875,30]
[399429578,1766345342722,-256.08147755,6.886e-05,2]
[399429580,1766345348456,-300.0,6.886e-05,2]
[399429581,1766345349157,-2044.89177159,6.886e-05,2]
[399429582,1766345349184,-3358.98052041,7.15e-05,2]
[399429583,1766345350019,-183.69005033,7.15e-05,2]
[399429584,1766345351449,-246.648431,7.15e-05,2]
[399429585,1766345355913,-267.01941217,7.018e-05,2]
[399429586,1766345359134,-60.69630581,7.018e-05,2]
[399429587,1766345359155,-145.98899318,7.15e-05,2]
[399429589,1766345363440,-1688.42200508,7.15e-05,2]
[399429590,1766345363468,-999.43598984,7.415e-05,2]
[399429591,1766345363502,-4624.29401016,7.415e-05,2]
[399429592,1766345363559,-161.53292789,7.573e-05,2]
[399429594,1766345365873,-278.53011109,7.573e-05,2]
[399429595,1766345365932,-951.93696102,7.573e-05,2]
[399429596,1766345365960,-250.0,7.574e-05,2]
[399429597,1766345365989,-250.0,7.574e-05,2]
[399429598,1766345366018,-1472.40607796,7.68e-05,2]
[399429599,1766345366079,-4151.32392204,7.68e-05,2]
[399429600,1766345366265,-390.28147966,7.888e-05,2]
[399429601,1766345366295,-3595.71704068,7.945e-05,2]
[399429602,1766345366331,-2028.01295932,7.945e-05,2]
[399429603,1766345366381,-3563.540914,7.945e-05,2]
[399429604,1766345366411,-628.354454,8.178e-05,2]
[399429605,1766345366459,-1616.219264,8.21e-05,2]
[399429606,1766345366509,-4007.510736,8.21e-05,2]
[399429607,1766345366544,-1984.988528,8.474e-05,2]
[399429608,1766345366667,-3638.741472,8.474e-05,2]
[399429609,1766345366704,-2722.527056,8.739e-05,2]
[399429611,1766345376523,-2901.202944,8.739e-05,2]
[399429612,1766345376557,-4197.604112,8.78e-05,2]
[399429613,1766345376755,-3327.0841146,8.78e-05,2]
[399429614,1766345376783,-3345.8417708,8.78e-05,2]
[399429616,1766345399082,-1339.51,8.993e-05,2]
[399429617,1766345399112,-1697.26,9.004e-05,2]
[399429618,1766345399149,-3926.47,9.004e-05,2]
[399429620,1766345418145,-300.0,7.648e-05,2]
[399429621,1766345418345,-10000.01,7.648e-05,2]
[399429622,1766345420026,-219.41245077,7.648e-05,2]
[399429623,1766345421901,-907.43852664,7.648e-05,2]
[399429625,1766345428654,-251.46810495,7.648e-05,2]
[399429634,1766345431368,-328.4750411,7.648e-05,2]
[399429637,1766345431380,-812.75505295,7.648e-05,2]
[399429638,1766345431391,-1047.38725016,7.648e-05,2]
[399429639,1766345431531,-290.03613613,7.648e-05,2]
[399429640,1766345431542,-1900.187709,7.945e-05,2]
[399429641,1766345431552,-250.0,8.393e-05,2]
[399429642,1766345431562,-250.0,8.413e-05,2]
[399429643,1766345431571,-937.76291929,8.738e-05,2]
[399429644,1766345431580,-937.76291929,8.738e-05,2]
[399429645,1766345431590,-937.76291929,8.738e-05,2]
[399429646,1766345431600,-937.76291929,8.738e-05,2]
[399429647,1766345431609,-937.76291929,8.738e-05,2]
[399429648,1766345431619,-937.76291929,8.738e-05,2]
[399429649,1766345431629,-937.76291929,8.738e-05,2]
[399429650,1766345431639,-937.76291929,8.738e-05,2]
[399429651,1766345431648,-937.76291929,8.738e-05,2]
[399429652,1766345431658,-819.2845124,8.738e-05,2]
[399429653,1766345431669,-118.47840689,8.738e-05,2]
[399429654,1766345431679,-937.76291929,8.738e-05,2]
[399429655,1766345431689,-937.76291929,8.738e-05,2]
[399429657,1766345431698,-937.76291929,8.738e-05,2]
[399429659,1766345431707,-937.76291929,8.738e-05,2]
[399429661,1766345431716,-937.76291929,8.738e-05,2]
[399429663,1766345431726,-937.76291929,8.738e-05,2]
[399429664,1766345431735,-937.76291929,8.738e-05,2]
[399429665,1766345431745,-937.76291929,8.738e-05,2]
[399429667,1766345431754,-937.76291929,8.738e-05,2]
[399429670,1766345431763,-854.1553195,8.738e-05,2]
[399429673,1766345431774,-83.60759979,8.738e-05,2]
[399429675,1766345431783,-937.76291929,8.738e-05,2]
[399429677,1766345431792,-937.76291929,8.738e-05,2]
[399429679,1766345431801,-471.82736684,8.738e-05,2]
[399429691,1766345437429,-465.93555245,8.738e-05,2]
[399429692,1766345437440,-937.76291929,8.738e-05,2]
[399429693,1766345437450,-937.76291929,8.738e-05,2]
[399429694,1766345437460,-937.76291929,8.738e-05,2]
[399429695,1766345437470,-937.76291929,8.738e-05,2]
[399429696,1766345437480,-937.76291929,8.738e-05,2]
[399429697,1766345437489,-937.76291929,8.738e-05,2]
[399429698,1766345437499,-937.76291929,8.738e-05,2]
[399429699,1766345437512,-937.76291929,8.738e-05,2]
[399429700,1766345437522,-937.76291929,8.738e-05,2]
[399429701,1766345437532,-937.76291929,8.738e-05,2]
[399429702,1766345437542,-937.76291929,8.738e-05,2]
[399429703,1766345437552,-937.76291929,8.738e-05,2]
[399429704,1766345437562,-937.76291929,8.738e-05,2]
[399429705,1766345437572,-937.76291929,8.738e-05,2]
[399429706,1766345437582,-937.76291929,8.738e-05,2]
[399429707,1766345437592,-937.76291929,8.738e-05,2]
[399429708,1766345437602,-937.76291929,8.738e-05,2]
[399429709,1766345437612,-937.76291929,8.738e-05,2]
[399429710,1766345437622,-937.76291929,8.738e-05,2]
[399429711,1766345437632,-937.76291929,8.738e-05,2]
[399429712,1766345437642,-937.76291929,8.738e-05,2]
[399429713,1766345437651,-937.76291929,8.738e-05,2]
[399429714,1766345437662,-937.76291929,8.738e-05,2]
[399429716,1766345437674,-937.76291929,8.738e-05,2]
[399429718,1766345437684,-937.76291929,8.738e-05,2]
[399429719,1766345437694,-937.76291929,8.738e-05,2]
[399429721,1766345437707,-937.76291929,8.738e-05,2]
[399429723,1766345437717,-937.76291929,8.738e-05,2]
[399429724,1766345437727,-937.76291929,8.738e-05,2]
[399429725,1766345437736,-937.76291929,8.738e-05,2]
[399429726,1766345437746,-937.76291929,8.738e-05,2]
[399429728,1766345437757,-937.76291929,8.738e-05,2]
[399429729,1766345437767,-937.76291929,8.738e-05,2]
[399429731,1766345437778,-937.76291929,8.738e-05,2]
[399429732,1766345437788,-937.76291929,8.738e-05,2]
[399429733,1766345437798,-868.80976346,8.738e-05,2]
[399429734,1766345437808,-868.80976346,8.738e-05,2]
[399429735,1766345437818,-868.80976346,8.738e-05,2]
[399429736,1766345437827,-868.80976346,8.738e-05,2]
[399429737,1766345437837,-868.80976346,8.738e-05,2]
[399429738,1766345437847,-868.80976346,8.738e-05,2]
[399429739,1766345437856,-868.80976346,8.738e-05,2]
[399429740,1766345437865,-868.80976346,8.738e-05,2]
[399429741,1766345437875,-868.80976346,8.738e-05,2]
[399429742,1766345437884,-868.80976346,8.738e-05,2]
[399429743,1766345437893,-868.80976346,8.738e-05,2]
[399429744,1766345437905,-868.80976346,8.738e-05,2]
[399429745,1766345437914,-868.80976346,8.738e-05,2]
[399429746,1766345437925,-868.80976346,8.738e-05,2]
[399429747,1766345437934,-868.80976346,8.738e-05,2]
[399429748,1766345437943,-868.80976346,8.738e-05,2]
[399429749,1766345437953,-868.80976346,8.738e-05,2]
[399429750,1766345437963,-868.80976346,8.738e-05,2]
[399429751,1766345437972,-868.80976346,8.738e-05,2]
[399429752,1766345437982,-868.80976346,8.738e-05,2]
[399429753,1766345437991,-868.80976346,8.738e-05,2]
[399429754,1766345438003,-868.80976346,8.738e-05,2]
[399429755,1766345438012,-868.80976346,8.738e-05,2]
[399429756,1766345438023,-868.80976346,8.738e-05,2]
[399429757,1766345438032,-868.80976346,8.738e-05,2]
[399429758,1766345438042,-868.80976346,8.738e-05,2]
[399429759,1766345438052,-868.80976346,8.738e-05,2]
[399429760,1766345438062,-868.80976346,8.738e-05,2]
[399429761,1766345438072,-868.80976346,8.738e-05,2]
[399429762,1766345438081,-868.80976346,8.738e-05,2]
[399429763,1766345438092,-868.80976346,8.738e-05,2]
[399429764,1766345438102,-868.80976346,8.738e-05,2]
[399429765,1766345438111,-868.80976346,8.738e-05,2]
[399429766,1766345438121,-347.75704666,8.95e-05,2]
[399429767,1766345438130,-15926.6053831,9.139e-05,2]
[399429768,1766345438140,-250.0,9.232e-05,2]
[399429769,1766345438150,-226.0,9.232e-05,2]
[399429770,1766345438159,-5623.73,9.269e-05,2]
[399429771,1766345438169,-282.604,9.46e-05,2]
[399429772,1766345438179,-300.0,9.46e-05,2]
[399429773,1766345438188,-1200.0,9.46e-05,2]
[399429774,1766345438198,-300.0,9.46e-05,2]
[399429775,1766345438207,-150.0,9.46e-05,2]
[399429776,1766345438218,-300.0,9.46e-05,2]
[399429777,1766345438228,-33494.9637,9.461e-05,2]
[399429778,1766345438238,-11276.8705,9.461e-05,2]
[399429779,1766345438248,-2500.0,9.461e-05,2]
[399429780,1766345438258,-1000000.0,9.461e-05,2]
[399429781,1766345438269,-287.34825156,9.533e-05,2]
[399429782,1766345438280,-231.14673577,9.533e-05,2]
[399429783,1766345438290,-5623.73,9.534e-05,2]
[399429784,1766345438299,-5623.73,9.799e-05,2]
[399429785,1766345438308,-1757.16,9.837e-05,2]
[399429786,1766345438320,-1000.0,9.9e-05,2]
[399429787,1766345438329,-281.64189663,0.0001,2]
[399429788,1766345438339,-281.64189663,0.0001,2]
[399429789,1766345438351,-281.64189663,0.0001,2]
[399429790,1766345438361,-151.0,0.0001,2]
[399429791,1766345438371,-151.0,0.0001,2]
[399429792,1766345438380,-151.0,0.0001,2]
[399429793,1766345438390,-151.0,0.0001,2]
[399429794,1766345438399,-151.0,0.0001,2]
[399429795,1766345438410,-151.0,0.0001,2]
[399429796,1766345438419,-151.0,0.0001,2]
[399429797,1766345438429,-151.0,0.0001,2]
[399429798,1766345438439,-151.0,0.0001,2]
[399429799,1766345438448,-151.0,0.0001,2]
[399429800,1766345438458,-151.0,0.0001,2]
[399429801,1766345438467,-151.0,0.0001,2]
[399429802,1766345438477,-151.0,0.0001,2]
[399429803,1766345438486,-151.0,0.0001,2]
[399429804,1766345438496,-151.0,0.0001,2]
[399429805,1766345438506,-151.0,0.0001,2]
[399429806,1766345438515,-151.0,0.0001,2]
[399429807,1766345438525,-151.0,0.0001,2]
[399429808,1766345438535,-151.0,0.0001,2]
[399429809,1766345438544,-151.0,0.0001,2]
[399429810,1766345438554,-1925.47279777,0.0001,2]
[399429811,1766345438564,-2726.83119608,0.0001,2]
[399429812,1766345438574,-22724.10745562,0.0001,2]
[399429813,1766345438583,-10870.5299974,0.00010038,2]
[399429814,1766345438593,-5623.73,0.00010063,2]
[399429815,1766345438603,-259.0314593,0.000101,2]
[399429816,1766345438612,-1757.16,0.00010111,2]
[399429817,1766345438623,-164.83,0.00010348,2]
[399429818,1766345438632,-1757.16,0.00010385,2]
[399429819,1766345438642,-420.0,0.00010406,2]
[399429820,1766345438651,-1680.0,0.00010406,2]
[399429821,1766345438661,-420.0,0.00010406,2]
[399429822,1766345438671,-255.0,0.00010406,2]
[399429823,1766345438680,-405.18,0.00010411,2]
[399429824,1766345438690,-150.99,0.00010411,2]
[399429825,1766345438700,-9999.99,0.00010411,2]
[399429826,1766345438710,-17696.2282034,0.00010472,2]
[399429827,1766345438719,-757.15342507,0.00010506,2]
[399429828,1766345438729,-9999.99,0.00010516,2]
[399429829,1766345438739,-9999.99,0.00010516,2]
[399429830,1766345438749,-150.99,0.00010516,2]
[399429831,1766345438760,-9999.99,0.00010516,2]
[399429832,1766345438770,-9999.99,0.00010516,2]
[399429833,1766345438781,-4999.99,0.00010516,2]
[399429834,1766345438792,-1757.16,0.00010659,2]
[399429835,1766345438802,-267.40656056,0.000107,2]
[399429836,1766345438812,-1047.98,0.00010743,2]
[399429837,1766345438822,-985.00508218,0.000108,2]
[399429838,1766345438831,-586.53427698,0.00010859,2]
[399429839,1766345438841,-1355.70244481,0.000109,2]
[399429840,1766345438851,-1355.7024448,0.000109,2]
[399429841,1766345438862,-1757.16,0.00010933,2]
[399429842,1766345438872,-7011.91,0.00010959,2]
[399429843,1766345438882,-5531.73266005,0.00011,2]
[399429844,1766345438892,-26782.82055292,0.00011099,2]
[399429845,1766345438901,-26782.82055288,0.00011099,2]
[399429846,1766345438911,-17793.21712468,0.00011099,2]
[399429847,1766345438921,-1757.16,0.00011207,2]
[399429848,1766345438931,-999.0,0.0001124,3]
[399429849,1766345438941,-332.67,0.0001124,2]
[399429850,1766345438951,-999.99,0.00011247,2]
[399429851,1766345438962,-299.99,0.00011247,2]
[399429852,1766345438972,-9999.99,0.00011247,2]
[399429853,1766345438982,-19999.99,0.00011247,2]
[399429854,1766345438992,-26782.82055288,0.00011247,2]
[399429855,1766345439001,-10870.5299974,0.00011297,2]
[399429856,1766345439012,-164.83,0.00011383,2]
[399429857,1766345439022,-587.0,0.00011447,2]
[399429858,1766345439032,-2351.0,0.00011447,2]
[399429859,1766345439042,-433.0,0.00011447,2]
[399429860,1766345439051,-587.0,0.00011447,2]
[399429861,1766345439063,-300.0,0.00011474,2]
[399429862,1766345439075,-151.0,0.00011474,2]
[399429863,1766345439085,-156.587,0.00011474,2]
[399429864,1766345439095,-162.380719,0.00011474,2]
[399429865,1766345439104,-153.50930745,0.00011474,2]
[399429866,1766345439114,-200.0,0.00011474,2]
[399429867,1766345439124,-207.4,0.00011474,2]
[399429868,1766345439134,-215.0738,0.00011474,2]
[399429869,1766345439144,-223.0315306,0.00011474,2]
[399429870,1766345439154,-231.28369723,0.00011474,2]
[399429871,1766345439163,-239.84119403,0.00011474,2]
[399429872,1766345439172,-248.71531821,0.00011474,2]
[399429873,1766345439183,-151.0,0.00011474,2]
[399429874,1766345439193,-257.91778498,0.00011474,2]
[399429875,1766345439202,-267.46074303,0.00011474,2]
[399429876,1766345439211,-1757.16,0.00011481,2]
[399429877,1766345439221,-19465.8510238,0.00011679,2]
[399429878,1766345439231,-1757.16,0.00011755,2]
[399429879,1766345439241,-1355.7024448,0.00011756,2]
[399429880,1766345439250,-980.68,0.00011823,2]
[399429881,1766345439260,-20051.85,0.00011824,2]
[399429882,1766345439274,-586.53427698,0.0001188,2]
[399429883,1766345439284,-5692.5,0.00011942,2]
[399429884,1766345439295,-942.62870135,0.00011955,2]
[399429885,1766345439307,-500.0,0.00011965,2]
[399429886,1766345439316,-5927.98541634,0.00012,2]
[399429887,1766345439325,-1757.16,0.00012029,2]
[399429888,1766345439335,-26782.82055288,0.00012055,2]
[399429889,1766345439350,-3240.0,0.00012068,2]
[399429890,1766345439359,-1757.16,0.00012303,2]
[399429891,1766345439369,-164.83,0.00012418,2]
[399429892,1766345439378,-10870.5299974,0.00012555,2]
[399429893,1766345439388,-1757.16,0.00012577,2]
[399429894,1766345439397,-3292.0,0.00012591,2]
[399429895,1766345439407,-736.0,0.00012591,2]
[399429896,1766345439416,-823.0,0.00012591,2]
[399429897,1766345439426,-21235.4738441,0.0001278,2]
[399429898,1766345439435,-1355.7024448,0.00012785,2]
[399429899,1766345439444,-57094.83,0.00012813,2]
[399429900,1766345439454,-311.1,0.00012843,2]
[399429901,1766345439463,-151.0,0.00012843,2]
[399429903,1766345439472,-277.35679052,0.00012843,2]
[399429905,1766345439482,-1757.16,0.00012851,2]
[399429907,1766345439492,-26782.82055288,0.00012862,2]
[399429908,1766345439502,-586.53427698,0.000129,2]
[399429909,1766345439511,-151.0,0.00012987,2]
[399429910,1766345439520,-129043.6888462,0.0001299,2]
[399429911,1766345439530,-4412.45542403,0.00013,2]
[399429912,1766345439539,-5328.33632405,0.0001305,2]
[399429914,1766345439548,-1757.16,0.00013125,2]
[399429915,1766345439557,-19975.44,0.00013203,2]
[399429916,1766345439567,-274.73,0.00013232,2]
[399429917,1766345439576,-183.65,0.00013255,2]
[399429918,1766345439586,-942.62870133,0.00013346,2]
[399429919,1766345439596,-1757.16,0.00013399,2]
[399429920,1766345439606,-1000.0,0.000135,2]
[399429921,1766345439616,-150.26,0.00013643,2]
[399429922,1766345439626,-150.31,0.00013643,2]
[399429923,1766345439636,-150.59,0.00013643,2]
[399429924,1766345439645,-152.75,0.00013643,2]
[399429925,1766345439655,-151.13,0.00013643,2]
[399429926,1766345439665,-264.97471348,0.00013643,2]
[399429927,1766345439676,-500.25022933,0.00013643,2]
[399429928,1766345439686,-500.0,0.00013643,2]
[399429929,1766345439695,-500.0,0.00013643,2]
[399429930,1766345439704,-500.0,0.00013643,2]
[399429931,1766345439713,-500.0,0.00013643,2]
[399429932,1766345439723,-535.22474582,0.00013643,2]
[399429933,1766345439732,-500.0,0.00013643,2]
[399429934,1766345439742,-500.0,0.00013643,2]
[399429935,1766345439751,-500.0,0.00013643,2]
[399429936,1766345439761,-500.0,0.00013643,2]
[399429937,1766345439770,-500.0,0.00013643,2]
[399429938,1766345439780,-500.0,0.00013643,2]
[399429939,1766345439790,-500.0,0.00013643,2]
[399429940,1766345439799,-500.0,0.00013643,2]
[399429941,1766345439808,-453.53849539,0.00013643,2]
[399429942,1766345439818,-500.0,0.00013643,2]
[399429943,1766345439827,-500.0,0.00013643,2]
[399429944,1766345439836,-500.0,0.00013643,2]
[399429945,1766345439845,-484.06013596,0.00013643,2]
[399429946,1766345439854,-235.55154497,0.00013643,2]
[399429947,1766345439863,-500.0,0.00013643,2]
[399429948,1766345439873,-500.0,0.00013643,2]
[399429949,1766345439882,-500.0,0.00013643,2]
[399429950,1766345439892,-501.40165484,0.00013643,2]
[399429951,1766345439901,-550.17823057,0.00013643,2]
[399429952,1766345439911,-500.0,0.00013643,2]
[399429953,1766345439921,-500.0,0.00013643,2]
[399429954,1766345439931,-500.0,0.00013643,2]
[399429955,1766345439941,-500.0,0.00013643,2]
[399429956,1766345439950,-500.0,0.00013643,2]
[399429957,1766345439960,-500.0,0.00013643,2]
[399429958,1766345439969,-500.0,0.00013643,2]
[399429959,1766345439978,-500.0,0.00013643,2]
[399429960,1766345439987,-500.0,0.00013643,2]
[399429961,1766345439996,-500.0,0.00013643,2]
[399429962,1766345440006,-500.0,0.00013644,2]
[399429963,1766345440015,-26782.82055288,0.0001367,2]
[399429964,1766345440025,-174.36363854,0.00013672,2]
[399429965,1766345440034,-1757.16,0.00013673,2]
[399429966,1766345440044,-261.824715,0.00013673,2]
[399429967,1766345440053,-1101.62355977,0.00013697,3]
[399429968,1766345440062,-500.0,0.00013698,2]
[399429969,1766345440071,-500.0,0.00013698,2]
[399429970,1766345440080,-500.0,0.00013698,2]
[399429971,1766345440090,-500.0,0.00013698,2]
[399429972,1766345440100,-500.0,0.00013698,2]
[399429973,1766345440110,-500.0,0.00013698,2]
[399429974,1766345440119,-344.15406571,0.00013698,2]
[399429975,1766345440128,-500.0,0.00013698,2]
[399429977,1766345440138,-500.0,0.00013698,2]
[399429978,1766345440146,-500.0,0.00013698,2]
[399429980,1766345440154,-500.0,0.00013698,2]
[399429981,1766345440162,-208.04,0.00013698,2]
[399429982,1766345440171,-500.0,0.00013698,2]
[399429983,1766345440181,-500.0,0.00013698,2]
[399429984,1766345440192,-500.0,0.00013698,2]
[399429985,1766345440201,-500.0,0.00013698,2]
[399429986,1766345440211,-500.0,0.00013698,2]
[399429987,1766345440220,-500.0,0.00013698,2]
[399429988,1766345440230,-500.0,0.00013698,2]
[399429989,1766345440239,-500.0,0.00013698,2]
[399429990,1766345440248,-500.0,0.00013698,2]
[399429991,1766345440257,-500.0,0.00013698,2]
[399429992,1766345440267,-500.0,0.00013698,2]
[399429993,1766345440281,-500.0,0.00013698,2]
[399429994,1766345440290,-500.0,0.00013698,2]
[399429995,1766345440299,-500.0,0.00013698,2]
[399429996,1766345440308,-500.0,0.00013698,2]
[399429997,1766345440320,-500.0,0.00013698,2]
[399429998,1766345440329,-500.0,0.00013698,2]
[399429999,1766345440338,-500.0,0.00013698,2]
[399430000,1766345440349,-500.0,0.00013698,2]
[399430001,1766345440358,-500.0,0.00013698,2]
[399430002,1766345440367,-500.0,0.00013698,2]
[399430003,1766345440377,-500.0,0.00013698,2]
[399430004,1766345440386,-500.0,0.00013698,2]
[399430005,1766345440396,-500.0,0.00013698,2]
[399430006,1766345440406,-500.0,0.00013698,2]
[399430007,1766345440416,-500.0,0.00013698,2]
[399430008,1766345440426,-500.0,0.00013698,2]
[399430009,1766345440437,-500.0,0.00013698,2]
[399430010,1766345440446,-500.0,0.00013698,2]
[399430011,1766345440455,-500.0,0.00013698,2]
[399430012,1766345440464,-500.0,0.00013698,2]
[399430013,1766345440473,-500.0,0.00013698,2]
[399430014,1766345440482,-500.0,0.00013698,2]
[399430015,1766345440491,-500.0,0.00013698,2]
[399430016,1766345440501,-500.0,0.00013698,2]
[399430017,1766345440511,-500.0,0.00013698,2]
[399430018,1766345440520,-500.0,0.00013698,2]
[399430019,1766345440530,-500.0,0.00013698,2]
[399430020,1766345440540,-500.0,0.00013698,2]
[399430021,1766345440549,-500.0,0.00013698,2]
[399430022,1766345440558,-500.0,0.00013698,2]
[399430023,1766345440567,-500.0,0.00013698,2]
[399430024,1766345440577,-500.0,0.00013698,2]
[399430025,1766345440863,-500.0,0.00013698,2]
[399430026,1766345440873,-500.0,0.00013698,2]
[399430027,1766345440882,-500.0,0.00013698,2]
[399430028,1766345440892,-500.0,0.00013698,2]
[399430029,1766345440901,-500.0,0.00013698,2]
[399430030,1766345440910,-500.0,0.00013698,2]
[399430031,1766345440919,-500.0,0.00013698,2]
[399430032,1766345440929,-511.95166241,0.00013698,2]
[399430033,1766345440938,-500.0,0.00013698,2]
[399430034,1766345440947,-500.0,0.00013698,2]
[399430035,1766345440957,-500.0,0.00013698,2]
[399430036,1766345440966,-500.0,0.00013698,2]
[399430037,1766345440976,-500.0,0.00013698,2]
[399430038,1766345440985,-500.0,0.00013698,2]
[399430039,1766345440994,-500.0,0.00013698,2]
[399430040,1766345441003,-279.56152478,0.00013698,2]
[399430041,1766345441013,-500.0,0.00013698,2]
[399430042,1766345441022,-500.0,0.00013698,2]
[399430043,1766345441031,-500.0,0.00013698,2]
[399430044,1766345441040,-500.0,0.00013698,2]
[399430045,1766345441049,-500.0,0.00013698,2]
[399430046,1766345441059,-500.0,0.00013698,2]
[399430047,1766345441068,-500.0,0.00013698,2]
[399430048,1766345441077,-500.0,0.00013698,2]
[399430049,1766345441086,-500.0,0.00013698,2]
[399430050,1766345441095,-500.0,0.00013698,2]
[399430051,1766345441104,-500.0,0.00013698,2]
[399430052,1766345441113,-500.0,0.00013698,2]
[399430053,1766345441122,-500.0,0.00013698,2]
[399430054,1766345441131,-500.0,0.00013698,2]
[399430055,1766345441141,-500.0,0.00013698,2]
[399430056,1766345441150,-500.0,0.00013698,2]
[399430057,1766345441159,-500.0,0.00013698,2]
[399430058,1766345441170,-500.0,0.00013698,2]
[399430059,1766345441179,-500.0,0.00013698,2]
[399430060,1766345441189,-500.0,0.00013698,2]
[399430061,1766345441198,-500.0,0.00013698,2]
[399430062,1766345441208,-500.0,0.00013698,2]
[399430063,1766345441217,-500.0,0.00013698,2]
[399430064,1766345441227,-500.0,0.00013698,2]
[399430065,1766345441236,-500.0,0.00013698,2]
[399430066,1766345441246,-505.3255501,0.00013698,2]
[399430067,1766345441255,-151.23,0.00013698,2]
[399430068,1766345441264,-15361.17,0.00013699,2]
[399430069,1766345441278,-196.43,0.00013699,2]
[399430070,1766345441288,-500.0,0.00013804,2]
[399430071,1766345441297,-500.0,0.00013804,2]
[399430072,1766345441306,-151.0,0.00013826,2]
[399430073,1766345441318,-1252.0,0.0001385,2]
[399430074,1766345441328,-4609.0,0.00013851,2]
[399430075,1766345441339,-1757.16,0.00013947,2]
[399430076,1766345441349,-151.0,0.00014122,2]
[399430077,1766345441359,-1000.0,0.00014191,2]
[399430078,1766345441368,-1000.0,0.00014191,2]
[399430079,1766345441377,-1000.0,0.00014191,2]
[399430080,1766345441387,-1000.0,0.00014191,2]
[399430081,1766345441396,-1000.0,0.00014191,2]
[399430082,1766345441405,-1000.0,0.00014191,2]
[399430083,1766345441415,-1000.0,0.00014191,2]
[399430084,1766345441424,-1000.0,0.00014191,2]